bitfinex/quotes_SOLUSD_20241031
["timestamp","ask_amount","ask_price","bid_price","bid_amount"]
[1730383053741,26.25760447,171.78,171.72,26.79760447]
[1730383053949,26.25760447,171.78,171.73,50.03448847]
[1730383054256,26.25760447,171.79,171.74,26.25760447]
[1730383054638,5.8197,171.83,171.73,26.25760447]
[1730383054639,26.25760447,171.78,171.73,26.25760447]
[1730383056055,26.25760447,171.78,171.74,0.54]
[1730383056263,26.25760447,171.79,171.74,50.57448847]
[1730383056564,14.6478,171.85,171.74,50.57448847]
[1730383056565,26.25760447,171.8,171.75,26.25760447]
[1730383056860,26.25760447,171.79,171.74,50.57448847]
[1730383057441,26.25760447,171.8,171.75,26.25760447]
[1730383057659,26.25760447,171.77,171.72,26.25760447]
[1730383057958,26.25760447,171.78,171.73,26.25760447]
[1730383058467,20.3677,171.84,171.72,23.776884]
[1730383058468,26.25760447,171.79,171.74,26.25760447]
[1730383060654,26.25760447,171.8,171.74,26.25760447]
[1730383060876,26.25760447,171.83,171.77,26.25760447]
[1730383061165,26.25760447,171.86,171.8,26.25760447]
[1730383061535,26.25760447,171.86,171.81,26.25760447]
[1730383061950,26.25760447,171.88,171.83,26.25760447]
[1730383062453,26.25760447,171.88,171.82,26.25760447]
[1730383062657,32.33020447,171.9,171.84,26.25760447]
[1730383062874,26.25760447,171.91,171.86,26.25760447]
[1730383063052,26.25760447,171.93,171.87,26.25760447]
[1730383063381,26.25760447,171.92,171.87,26.25760447]
[1730383063555,5.8159,171.94,171.87,26.25760447]
[1730383063556,26.25760447,171.93,171.87,26.25760447]
[1730383063745,26.25760447,171.93,171.88,26.25760447]
[1730383063947,26.25760447,171.92,171.87,26.25760447]
[1730383064348,26.25760447,171.93,171.87,26.25760447]
[1730383065140,26.25760447,171.93,171.88,26.25760447]
[1730383065341,26.25760447,171.94,171.89,26.25760447]
[1730383065757,26.25760447,171.94,171.88,26.25760447]
[1730383066266,26.25760447,171.93,171.88,26.25760447]
[1730383066468,5.8146,171.98,171.87,26.25760447]
[1730383066469,26.25760447,171.92,171.87,26.25760447]
[1730383066773,26.25760447,171.93,171.87,26.25760447]
[1730383067065,5.8162,171.94,171.87,26.25760447]
[1730383067066,26.25760447,171.92,171.87,26.25760447]
[1730383067368,26.25760447,171.93,171.87,26.25760447]
[1730383067779,46.25760447,171.88,171.81,26.25760447]
[1730383067984,0.1,171.75,171.58,22.0429]
[1730383068172,0.12549,171.74,171.58,15.441]
[1730383068878,20.12549,171.72,171.6,5.8272]
[1730383069188,26.25760447,171.65,171.6,5.8272]
[1730383069487,46.38309447,171.72,171.6,5.8272]
[1730383069488,26.25760447,171.67,171.61,26.25760447]
[1730383069653,26.25760447,171.64,171.6,5.8272]
[1730383069860,26.25760447,171.65,171.6,32.08480447]
[1730383070270,26.25760447,171.69,171.64,26.25760447]
[1730383070578,6.3419,171.78,171.6,5.8272]
[1730383070579,26.25760447,171.67,171.61,26.25760447]
[1730383070959,26.25760447,171.65,171.6,32.08480447]
[1730383071492,26.25760447,171.64,171.6,5.8272]
[1730383071678,26.25760447,171.67,171.61,26.25760447]
[1730383072072,26.25760447,171.68,171.63,26.25760447]
[1730383072579,26.25760447,171.69,171.63,26.25760447]
[1730383072783,26.25760447,171.7,171.65,26.25760447]
[1730383072981,26.25760447,171.69,171.64,26.25760447]
[1730383073163,26.25760447,171.71,171.67,5.8251]
[1730383073356,26.25760447,171.73,171.67,32.08270447]
[1730383073961,26.25760447,171.74,171.68,26.25760447]
[1730383074282,26.25760447,171.75,171.7,26.25760447]
[1730383074598,26.25760447,171.73,171.68,26.25760447]
[1730383075086,26.25760447,171.74,171.68,26.25760447]
[1730383075267,26.25760447,171.74,171.69,5.8244]
[1730383075473,26.25760447,171.71,171.69,5.8244]
[1730383075686,26.25760447,171.72,171.69,5.8244]
[1730383075989,26.25760447,171.71,171.65,26.25760447]
[1730383076172,26.25760447,171.71,171.66,50.03448847]
[1730383076359,26.25760447,171.72,171.66,50.03448847]
[1730383076563,26.25760447,171.73,171.68,26.25760447]
[1730383076758,26.25760447,171.72,171.67,26.25760447]
[1730383076964,26.25760447,171.72,171.66,26.25760447]
[1730383077179,26.25760447,171.72,171.67,5.8251]
[1730383077983,26.25760447,171.73,171.68,42.87190447]
[1730383078285,26.25760447,171.74,171.69,26.25760447]
[1730383078468,26.25760447,171.74,171.68,42.87190447]
[1730383078679,26.25760447,171.73,171.68,42.87190447]
[1730383078878,26.25760447,171.72,171.68,16.6143]
[1730383079185,26.25760447,171.72,171.67,32.08270447]
[1730383079490,26.25760447,171.73,171.67,32.08270447]
[1730383080187,26.25760447,171.74,171.69,26.25760447]
[1730383080492,26.25760447,171.75,171.69,26.25760447]
[1730383080669,26.25760447,171.76,171.71,26.25760447]
[1730383080868,26.25760447,171.77,171.71,26.25760447]
[1730383081075,26.25760447,171.77,171.72,26.25760447]
[1730383081280,26.25760447,171.79,171.74,26.25760447]
[1730383081664,26.25760447,171.8,171.75,26.25760447]
[1730383081890,26.25760447,171.81,171.75,26.25760447]
[1730383082896,12.0381,171.84,171.73,32.08060447]
[1730383082897,26.25760447,171.78,171.73,32.08060447]
[1730383083398,12.0381,171.84,171.68,23.776884]
[1730383083399,26.25760447,171.77,171.72,26.25760447]
[1730383083590,26.25760447,171.79,171.74,26.25760447]
[1730383084574,26.25760447,171.78,171.73,26.25760447]
[1730383085369,26.25760447,171.8,171.74,26.25760447]
[1730383085568,26.25760447,171.8,171.75,26.25760447]
[1730383086180,26.25760447,171.79,171.74,26.25760447]
[1730383086497,6.2186,171.84,171.71,5.8237]
[1730383086498,26.25760447,171.75,171.71,5.8237]
[1730383087002,26.25760447,171.72,171.71,5.8237]
[1730383087287,26.25760447,171.73,171.68,42.71350447]
[1730383087496,26.25760447,171.73,171.69,5.8244]
[1730383088071,26.25760447,171.78,171.72,26.25760447]
[1730383088289,26.25760447,171.79,171.74,26.25760447]
[1730383088502,26.25760447,171.78,171.73,26.25760447]
[1730383089191,26.25760447,171.75,171.74,5.8227]
[1730383089377,26.25760447,171.78,171.74,5.8227]
[1730383089692,26.25760447,171.76,171.74,5.8227]
[1730383089891,26.25760447,171.77,171.74,5.8227]
[1730383090400,26.25760447,171.78,171.74,5.8227]
[1730383090573,26.25760447,171.77,171.74,5.8227]
[1730383090991,26.25760447,171.77,171.72,26.25760447]
[1730383091202,26.25760447,171.77,171.72,50.03448847]
[1730383091490,26.25760447,171.76,171.71,32.08130447]
[1730383091693,26.25760447,171.74,171.71,5.8237]
[1730383092594,26.25760447,171.75,171.69,26.25760447]
[1730383092894,26.25760447,171.75,171.7,32.08170447]
[1730383093765,26.25760447,171.75,171.7,5.8241]
[1730383093966,26.25760447,171.71,171.65,5.8258]
[1730383094170,26.25760447,171.68,171.65,5.8258]
[1730383094598,26.25760447,171.68,171.63,41.30200447]
[1730383095383,32.08110447,171.72,171.55,101.44292931]
[1730383095384,26.25760447,171.65,171.57,15.0837]
[1730383095706,26.25760447,171.65,171.6,26.25760447]
[1730383095885,26.25760447,171.65,171.59,26.25760447]
[1730383096086,26.25760447,171.66,171.61,26.25760447]
[1730383096392,26.25760447,171.67,171.62,26.25760447]
[1730383096700,26.25760447,171.68,171.63,5.8264]
[1730383096901,26.25760447,171.67,171.63,5.8264]
[1730383097196,26.25760447,171.72,171.66,26.25760447]
[1730383097495,26.25760447,171.72,171.67,50.03448847]
[1730383097675,26.25760447,171.73,171.68,26.25760447]
[1730383097881,26.25760447,171.74,171.68,26.25760447]
[1730383098075,26.25760447,171.75,171.69,26.25760447]
[1730383098284,26.25760447,171.73,171.69,23.776884]
[1730383098473,26.25760447,171.75,171.7,26.25760447]
[1730383098678,26.25760447,171.75,171.71,5.8237]
[1730383099005,26.25760447,171.72,171.67,32.08270447]
[1730383099706,26.25760447,171.74,171.68,26.25760447]
[1730383099874,26.25760447,171.74,171.69,26.25760447]
[1730383100074,26.25760447,171.75,171.7,5.8241]
[1730383100276,5.8213,171.78,171.7,5.8241]
[1730383100498,26.25760447,171.75,171.7,5.8241]
[1730383101199,26.25760447,171.74,171.7,5.8241]
[1730383101502,26.25760447,171.73,171.7,5.8241]
[1730383101676,26.25760447,171.73,171.67,32.08270447]
[1730383101877,26.25760447,171.72,171.67,32.08270447]
[1730383102107,26.25760447,171.71,171.67,5.8251]
[1730383102289,26.25760447,171.68,171.63,26.25760447]
[1730383102798,26.25760447,171.69,171.63,26.25760447]
[1730383103005,26.25760447,171.68,171.63,26.25760447]
[1730383103384,26.25760447,171.67,171.62,32.08440447]
[1730383103587,26.25760447,171.65,171.62,5.8268]
[1730383103804,26.25760447,171.67,171.62,5.8268]
[1730383104181,26.25760447,171.67,171.62,32.08440447]
[1730383104806,26.25760447,171.66,171.62,5.8268]
[1730383105106,26.25760447,171.67,171.62,5.8268]
[1730383105481,26.25760447,171.67,171.62,32.08440447]
[1730383105700,26.25760447,171.69,171.64,26.25760447]
[1730383106286,26.25760447,171.7,171.65,26.25760447]
[1730383106479,26.25760447,171.7,171.64,26.25760447]
[1730383106783,26.25760447,171.69,171.63,26.25760447]
[1730383106988,26.25760447,171.68,171.63,26.25760447]
[1730383107219,26.25760447,171.67,171.61,26.25760447]
[1730383107915,26.25760447,171.67,171.62,26.25760447]
[1730383108085,26.25760447,171.65,171.59,26.25760447]
[1730383108607,26.25760447,171.66,171.61,26.25760447]
[1730383109109,26.25760447,171.68,171.62,26.25760447]
[1730383109308,5.8244,171.69,171.56,15.6053]
[1730383109309,26.25760447,171.71,171.65,26.25760447]
[1730383109510,26.25760447,171.7,171.65,26.25760447]
[1730383109694,26.25760447,171.7,171.64,26.25760447]
[1730383110289,26.25760447,171.7,171.65,5.8258]
[1730383110689,26.25760447,171.67,171.62,26.25760447]
[1730383111214,26.25760447,171.7,171.64,26.25760447]
[1730383111581,26.25760447,171.69,171.64,26.25760447]
[1730383111788,26.25760447,171.69,171.64,32.08360447]
[1730383111981,6.1834,171.73,171.64,32.08360447]
[1730383111982,26.25760447,171.72,171.66,26.25760447]
[1730383112280,26.25760447,171.71,171.66,26.25760447]
[1730383112491,26.25760447,171.7,171.65,26.25760447]
[1730383112831,46.25760447,171.72,171.66,26.25760447]
[1730383113126,26.25760447,171.71,171.66,26.25760447]
[1730383113328,46.25760447,171.72,171.67,5.8251]
[1730383113625,52.08110447,171.72,171.67,5.8251]
[1730383114326,26.25760447,171.71,171.67,5.8251]
[1730383115012,26.25760447,171.72,171.67,5.8251]
[1730383115214,26.25760447,171.71,171.67,5.8251]
[1730383115532,32.08110447,171.72,171.67,5.8251]
[1730383116605,32.08110447,171.72,171.67,26.25760447]
[1730383117300,32.08110447,171.72,171.61,5.8271]
[1730383117301,26.25760447,171.7,171.64,26.25760447]
[1730383117504,26.25760447,171.69,171.63,26.25760447]
[1730383117812,26.25760447,171.69,171.64,26.25760447]
[1730383118131,5.8235,171.72,171.6,26.25760447]
[1730383118132,26.25760447,171.65,171.6,26.25760447]
[1730383118328,26.25760447,171.65,171.59,26.25760447]
[1730383118505,26.25760447,171.64,171.58,26.25760447]
[1730383118832,26.25760447,171.66,171.61,26.25760447]
[1730383119200,26.25760447,171.66,171.6,26.25760447]
[1730383119717,26.25760447,171.66,171.61,26.25760447]
[1730383119912,32.08330447,171.66,171.6,26.25760447]
[1730383120120,5.8257,171.66,171.61,26.25760447]
[1730383120323,32.08330447,171.66,171.61,26.25760447]
[1730383120631,26.25760447,171.62,171.58,14.5704]
[1730383122115,26.25760447,171.66,171.61,26.25760447]
[1730383122314,26.25760447,171.68,171.63,26.25760447]
[1730383122521,26.25760447,171.67,171.62,26.25760447]
[1730383122925,26.25760447,171.67,171.61,26.25760447]
[1730383123227,26.25760447,171.66,171.61,26.25760447]
[1730383123416,26.25760447,171.66,171.62,5.8268]
[1730383123614,26.25760447,171.65,171.62,5.8268]
[1730383124232,26.25760447,171.65,171.59,26.25760447]
[1730383124438,26.25760447,171.65,171.62,14.567]
[1730383124737,26.25760447,171.66,171.62,14.567]
[1730383125539,26.25760447,171.66,171.61,26.25760447]
[1730383125735,26.25760447,171.66,171.55,101.44292931]
[1730383125736,46.25760447,171.62,171.55,101.44292931]
[1730383125943,26.25760447,171.56,171.55,101.44292931]
[1730383126125,26.38309447,171.56,171.55,101.44292931]
[1730383126312,26.48309447,171.56,171.55,101.44292931]
[1730383126638,26.38309447,171.56,171.55,101.44292931]
[1730383126940,26.38309447,171.56,171.55,100.94292931]
[1730383127244,0.1,171.53,171.45,0.5888404]
[1730383127415,26.25760447,171.47,171.45,0.5888404]
[1730383128019,26.25760447,171.48,171.45,0.5888404]
[1730383128226,26.25760447,171.46,171.45,0.5888404]
[1730383130140,26.25760447,171.47,171.45,0.5888404]
[1730383130337,26.25760447,171.46,171.45,0.5888404]
[1730383130840,26.25760447,171.46,171.45,0.0888404]
[1730383133423,32.08980447,171.46,171.45,0.0888404]
[1730383133631,26.25760447,171.46,171.45,0.0888404]
[1730383134424,32.08980447,171.46,171.45,0.0888404]
[1730383134824,64.95689894,171.46,171.39,11.47296145]
[1730383135033,26.25760447,171.4,171.39,11.47296145]
[1730383135415,26.25760447,171.41,171.39,17.30756145]
[1730383135613,26.25760447,171.41,171.39,11.47296145]
[1730383135816,26.25760447,171.41,171.39,17.30756145]
[1730383136038,26.25760447,171.4,171.39,11.47296145]
[1730383136236,26.25760447,171.41,171.39,11.47296145]
[1730383136942,26.25760447,171.42,171.39,11.47296145]
[1730383137318,26.25760447,171.42,171.39,17.30756145]
[1730383137514,26.25760447,171.44,171.39,43.56516592]
[1730383137733,26.25760447,171.46,171.4,26.25760447]
[1730383137942,26.25760447,171.47,171.41,50.03448847]
[1730383138441,6.07764096,171.54,171.46,26.25760447]
[1730383138620,0.2,171.6,171.47,23.776884]
[1730383138825,6.06806166,171.59,171.47,23.776884]
[1730383139337,0.1,171.58,171.44,29.609784]
[1730383139635,26.25760447,171.52,171.46,26.25760447]
[1730383140335,20.3998,171.57,171.44,20.4152]
[1730383140336,26.25760447,171.48,171.44,20.4152]
[1730383140527,26.25760447,171.49,171.44,40.83990447]
[1730383140725,26.25760447,171.5,171.45,26.25760447]
[1730383141344,0.1,171.55,171.43,15.9532]
[1730383141345,5.8319,171.47,171.43,42.21080447]
[1730383141544,26.25760447,171.47,171.43,15.9532]
[1730383142047,26.25760447,171.46,171.43,15.9532]
[1730383142622,26.25760447,171.44,171.39,59.19276592]
[1730383143235,26.25760447,171.44,171.39,27.10056145]
[1730383143429,26.25760447,171.43,171.39,27.10056145]
[1730383143635,26.25760447,171.43,171.39,11.47296145]
[1730383143829,26.25760447,171.42,171.39,11.47296145]
[1730383144256,26.25760447,171.41,171.39,11.47296145]
[1730383144544,26.25760447,171.42,171.39,11.47296145]
[1730383145061,26.25760447,171.4,171.39,11.47296145]
[1730383145628,26.25760447,171.41,171.39,11.47296145]
[1730383145824,26.25760447,171.4,171.39,11.47296145]
[1730383146341,26.25760447,171.42,171.39,11.47296145]
[1730383146527,26.25760447,171.44,171.39,11.47296145]
[1730383146736,26.25760447,171.42,171.39,11.47296145]
[1730383147161,26.25760447,171.41,171.39,11.47296145]
[1730383147356,26.25760447,171.4,171.39,11.47296145]
[1730383147525,32.09190447,171.4,171.39,11.47296145]
[1730383147721,26.25760447,171.4,171.39,11.47296145]
[1730383148820,26.25760447,171.45,171.39,11.47296145]
[1730383149022,26.25760447,171.4,171.39,11.47296145]
[1730383149953,32.09190447,171.4,171.39,11.47296145]
[1730383150670,32.21739447,171.4,171.39,11.47296145]
[1730383150962,32.09190447,171.4,171.39,11.47296145]
[1730383151144,52.31739447,171.4,171.39,11.47296145]
[1730383151345,52.21739447,171.4,171.39,11.47296145]
[1730383151763,52.34288447,171.4,171.39,11.47296145]
[1730383152066,52.21739447,171.4,171.39,11.47296145]
[1730383152268,32.32657483,171.45,171.39,43.56516592]
[1730383152475,32.32657483,171.45,171.39,26.05956145]
[1730383152476,26.25760447,171.43,171.39,26.05956145]
[1730383152759,5.8326,171.45,171.39,11.47296145]
[1730383152760,26.25760447,171.42,171.39,11.47296145]
[1730383152939,11.88673449,171.48,171.39,17.30746145]
[1730383153143,11.88683449,171.48,171.39,31.89406145]
[1730383153441,26.25760447,171.47,171.41,26.25760447]
[1730383153639,26.25760447,171.47,171.42,20.4176]
[1730383153851,26.25760447,171.46,171.42,20.4176]
[1730383154440,26.25760447,171.47,171.42,46.67520447]
[1730383154657,12.38146834,171.51,171.42,46.67520447]
[1730383154658,26.25760447,171.48,171.42,46.67520447]
[1730383154862,26.25760447,171.47,171.42,46.67520447]
[1730383155080,26.25760447,171.5,171.44,26.25760447]
[1730383155571,6.317,171.51,171.42,20.4176]
[1730383155572,26.25760447,171.45,171.42,14.584]
[1730383155866,26.25760447,171.44,171.42,14.584]
[1730383156040,26.25760447,171.45,171.42,14.584]
[1730383156643,26.25760447,171.47,171.42,14.584]
[1730383156850,26.25760447,171.49,171.43,26.25760447]
[1730383157039,26.25760447,171.47,171.42,40.84160447]
[1730383157466,26.25760447,171.49,171.43,26.25760447]
[1730383157637,26.25760447,171.49,171.45,5.8326]
[1730383157842,26.25760447,171.49,171.45,20.4141]
[1730383158177,26.25760447,171.5,171.45,46.67170447]
[1730383158360,26.25760447,171.5,171.44,26.25760447]
[1730383158553,26.25760447,171.49,171.43,62.33990447]
[1730383158750,6.06403527,171.53,171.44,23.776884]
[1730383159066,14.6693,171.6,171.44,23.776884]
[1730383159271,26.25760447,171.55,171.49,26.25760447]
[1730383159868,26.25760447,171.55,171.5,32.08850447]
[1730383160076,26.25760447,171.57,171.52,26.25760447]
[1730383160578,26.25760447,171.59,171.53,26.25760447]
[1730383160870,26.25760447,171.63,171.52,15.666]
[1730383160871,6.06224399,171.63,171.58,26.25760447]
[1730383161073,26.25760447,171.65,171.6,26.25760447]
[1730383161258,26.25760447,171.65,171.54,0.22549]
[1730383161460,6.0245,171.69,171.53,23.776884]
[1730383161955,26.25760447,171.65,171.6,26.25760447]
[1730383162477,26.25760447,171.66,171.61,26.25760447]
[1730383163477,26.25760447,171.7,171.65,26.25760447]
[1730383163864,26.25760447,171.72,171.66,26.25760447]
[1730383164165,26.25760447,171.71,171.65,46.64770447]
[1730383164547,26.25760447,171.71,171.66,26.25760447]
[1730383164943,26.25760447,171.72,171.67,26.25760447]
[1730383165374,32.08100447,171.72,171.67,26.25760447]
[1730383165955,26.25760447,171.74,171.68,26.25760447]
[1730383166166,26.25760447,171.69,171.64,16.119]
[1730383166463,5.8231,171.73,171.64,16.119]
[1730383166464,26.25760447,171.67,171.64,16.119]
[1730383166853,26.25760447,171.68,171.64,16.119]
[1730383167266,26.25760447,171.66,171.61,26.25760447]
[1730383167777,26.25760447,171.67,171.61,26.25760447]
[1730383168071,26.25760447,171.66,171.61,26.25760447]
[1730383168252,26.25760447,171.65,171.6,32.08500447]
[1730383168656,0.12549,171.71,171.59,15.7334]
[1730383168657,26.25760447,171.64,171.59,15.7334]
[1730383168981,26.25760447,171.62,171.59,15.7334]
[1730383169356,26.25760447,171.6,171.59,15.7334]
[1730383169751,26.25760447,171.62,171.59,15.7334]
[1730383170261,26.25760447,171.61,171.59,15.7334]
[1730383170560,26.25760447,171.63,171.59,15.7334]
[1730383171457,26.25760447,171.6,171.53,47.73190447]
[1730383171655,26.25760447,171.59,171.53,47.73190447]
[1730383172361,26.25760447,171.6,171.55,26.25760447]
[1730383172562,26.25760447,171.62,171.56,26.25760447]
[1730383172758,5.8264,171.64,171.56,26.25760447]
[1730383172759,26.25760447,171.61,171.56,26.25760447]
[1730383172964,26.25760447,171.59,171.54,23.776884]
[1730383173171,26.25760447,171.57,171.53,15.6448]
[1730383173473,26.25760447,171.58,171.53,47.73220447]
[1730383174182,26.25760447,171.58,171.53,15.6448]
[1730383174474,26.25760447,171.58,171.53,21.4745]
[1730383174680,26.25760447,171.6,171.55,26.25760447]
[1730383174972,26.25760447,171.61,171.56,26.25760447]
[1730383175177,32.08440447,171.62,171.57,26.25760447]
[1730383175473,32.08440447,171.62,171.57,32.08580447]
[1730383175662,26.25760447,171.6,171.55,23.776884]
[1730383175867,26.25760447,171.6,171.55,50.03448847]
[1730383176373,26.25760447,171.6,171.55,23.776884]
[1730383176602,26.25760447,171.6,171.55,50.03448847]
[1730383176760,26.25760447,171.62,171.58,23.776884]
[1730383176961,26.25760447,171.6,171.55,26.25760447]
[1730383177155,26.25760447,171.61,171.56,50.03448847]
[1730383177359,26.25760447,171.61,171.56,55.86318847]
[1730383177556,26.25760447,171.59,171.55,5.8291]
[1730383178679,26.25760447,171.59,171.54,20.4033]
[1730383178984,26.25760447,171.58,171.54,14.5738]
[1730383179181,26.25760447,171.59,171.54,14.5738]
[1730383179487,26.25760447,171.59,171.54,20.4033]
[1730383179670,26.25760447,171.59,171.54,46.66090447]
[1730383179981,26.25760447,171.6,171.55,26.25760447]
[1730383180669,26.25760447,171.6,171.55,46.65960447]
[1730383180869,26.25760447,171.63,171.58,26.25760447]
[1730383181063,32.08400447,171.64,171.59,26.25760447]
[1730383182185,26.25760447,171.63,171.58,32.08560447]
[1730383182390,5.8264,171.64,171.58,32.08560447]
[1730383182391,26.25760447,171.62,171.58,5.828]
[1730383182975,26.25760447,171.59,171.55,20.4022]
[1730383183176,26.25760447,171.61,171.56,26.25760447]
[1730383183389,26.25760447,171.62,171.57,26.25760447]
[1730383183557,26.25760447,171.64,171.59,26.25760447]
[1730383183981,26.25760447,171.64,171.58,50.03448847]
[1730383184283,26.25760447,171.65,171.59,32.08540447]
[1730383184479,26.25760447,171.66,171.61,26.25760447]
[1730383184685,26.25760447,171.68,171.63,26.25760447]
[1730383184983,14.5575,171.74,171.65,26.25760447]
[1730383184984,26.25760447,171.7,171.65,26.25760447]
[1730383185178,26.25760447,171.7,171.62,15.6488]
[1730383185179,26.25760447,171.72,171.67,26.25760447]
[1730383185372,26.25760447,171.73,171.67,26.25760447]
[1730383185562,5.8227,171.75,171.66,23.776884]
[1730383185563,26.25760447,171.74,171.69,26.25760447]
[1730383185765,32.08030447,171.75,171.69,26.25760447]
[1730383186170,26.25760447,171.77,171.72,26.25760447]
[1730383186664,26.25760447,171.76,171.71,41.62080447]
[1730383186856,26.25760447,171.77,171.72,26.25760447]
[1730383187060,6.7838,171.85,171.72,26.25760447]
[1730383187061,26.25760447,171.78,171.73,23.776884]
[1730383187292,32.59074297,171.83,171.77,26.25760447]
[1730383187480,26.25760447,171.83,171.78,50.03448847]
[1730383187662,26.25760447,171.83,171.78,23.776884]
[1730383187867,5.8185,171.87,171.79,26.25760447]
[1730383188400,6.62718872,171.88,171.78,15.31119]
[1730383188569,0.5888404,171.88,171.79,30.627184]
[1730383188769,0.5888404,171.88,171.8,0.22549]
[1730383188998,0.5888404,171.88,171.85,26.25760447]
[1730383189191,0.5888404,171.88,171.8,26.25760447]
[1730383189192,26.25760447,171.86,171.8,26.25760447]
[1730383189496,26.25760447,171.84,171.81,23.776884]
[1730383189677,26.25760447,171.83,171.8,23.776884]
[1730383189999,26.25760447,171.84,171.8,23.776884]
[1730383190290,0.5888404,171.88,171.81,26.25760447]
[1730383190291,26.25760447,171.86,171.81,26.25760447]
[1730383190482,26.25760447,171.85,171.82,23.776884]
[1730383190678,26.25760447,171.86,171.81,23.776884]
[1730383191084,6.4068404,171.88,171.81,23.776884]
[1730383191085,26.25760447,171.85,171.81,23.776884]
[1730383191471,26.25760447,171.84,171.8,23.776884]
[1730383191891,6.4069404,171.88,171.79,23.776884]
[1730383191892,26.25760447,171.81,171.79,23.776884]
[1730383192286,26.25760447,171.8,171.78,15.1857]
[1730383192496,26.25760447,171.79,171.78,15.1857]
[1730383193502,26.25760447,171.79,171.74,6.5535]
[1730383193709,26.25760447,171.76,171.74,6.5535]
[1730383193882,26.25760447,171.76,171.73,15.2837]
[1730383194202,26.25760447,171.74,171.73,15.2837]
[1730383195201,26.25760447,171.76,171.73,15.2837]
[1730383195698,26.25760447,171.76,171.74,23.776884]
[1730383195905,26.25760447,171.78,171.74,23.776884]
[1730383196480,26.25760447,171.86,171.77,26.25760447]
[1730383196680,26.25760447,171.86,171.81,23.776884]
[1730383197091,26.25760447,171.85,171.81,23.776884]
[1730383197298,26.25760447,171.84,171.78,26.25760447]
[1730383197577,26.25760447,171.84,171.75,0.32549]
[1730383197578,26.25760447,171.85,171.8,23.776884]
[1730383197785,26.25760447,171.87,171.82,23.776884]
[1730383198199,0.1,171.87,171.84,23.776884]
[1730383198505,0.1,171.86,171.82,26.25760447]
[1730383198688,0.1,171.86,171.83,26.25760447]
[1730383199131,32.66444487,171.88,171.84,26.25760447]
[1730383199132,0.5888404,171.88,171.84,26.25760447]
[1730383199406,6.4068404,171.88,171.85,26.25760447]
[1730383199606,0.5888404,171.88,171.85,26.25760447]
[1730383199991,0.5888404,171.88,171.86,26.25760447]
[1730383200188,0.5888404,171.88,171.87,26.25760447]
[1730383200509,0.5888404,171.88,171.87,50.15997847]
[1730383200697,0.5888404,171.88,171.74,1.1631504]
[1730383201010,0.5888404,171.88,171.76,23.902374]
[1730383201215,0.6888404,171.88,171.77,21.6436]
[1730383201507,0.5888404,171.88,171.8,23.902374]
[1730383201717,0.5888404,171.88,171.82,23.902374]
[1730383201886,0.5888404,171.88,171.87,26.25760447]
[1730383202293,0.5888404,171.88,171.85,26.25760447]
[1730383202486,0.1,171.87,171.84,26.25760447]
[1730383202791,0.1,171.86,171.82,26.25760447]
[1730383202995,32.66444487,171.88,171.81,15.3648]
[1730383202996,0.1,171.84,171.81,15.3648]
[1730383203600,26.35760447,171.84,171.81,15.3648]
[1730383203801,26.35760447,171.83,171.81,15.3648]
[1730383204216,0.1,171.82,171.77,42.81380447]
[1730383204393,32.17780447,171.82,171.77,16.5562]
[1730383204595,48.7435132,171.82,171.77,16.5562]
[1730383204796,42.9233132,171.81,171.77,16.5562]
[1730383205019,0.1,171.81,171.77,16.5562]
[1730383205404,0.1,171.81,171.77,22.3778]
[1730383205618,42.8233132,171.86,171.8,42.8233132]
[1730383205813,0.1,171.84,171.8,42.8233132]
[1730383206009,48.6420132,171.86,171.8,42.8233132]
[1730383206010,48.7420132,171.86,171.8,42.8233132]
[1730383206205,0.1,171.83,171.79,42.8233132]
[1730383206424,0.1,171.84,171.8,42.8233132]
[1730383206723,48.7420132,171.86,171.8,42.8233132]
[1730383206916,42.9233132,171.85,171.8,42.8233132]
[1730383207129,0.1,171.84,171.79,57.3759132]
[1730383207421,0.1,171.82,171.78,42.8233132]
[1730383207625,42.8233132,171.84,171.79,42.8233132]
[1730383207806,42.8233132,171.85,171.8,42.8233132]
[1730383208424,0.1,171.87,171.83,42.8233132]
[1730383208600,0.1,171.86,171.81,57.3739132]
[1730383208933,0.1,171.85,171.8,42.8233132]
[1730383209113,42.9233132,171.87,171.81,42.8233132]
[1730383209314,0.1,171.85,171.8,42.8233132]
[1730383209512,42.8233132,171.84,171.79,63.1969132]
[1730383210019,42.9233132,171.85,171.8,42.8233132]
[1730383210224,0.5888404,171.88,171.84,42.8233132]
[1730383210399,0.6888404,171.88,171.84,14.5483]
[1730383210602,0.1,171.86,171.82,42.8233132]
[1730383210900,0.2,171.86,171.81,42.8233132]
[1730383211101,0.1,171.86,171.81,42.8233132]
[1730383211342,0.1,171.83,171.79,48.6442132]
[1730383211510,0.1,171.83,171.78,48.6446132]
[1730383211705,42.9233132,171.82,171.77,59.3795132]